bitfinex-derivatives/quotes_SOLF0:USTF0_20250106
["timestamp","ask_amount","ask_price","bid_price","bid_amount"]
[1736142429126,2.84,216.5,216.49,5.02170285]
[1736142429426,2.84,216.5,216.49,128.88517896]
[1736142430829,2.84,216.5,216.49,119.25127611]
[1736142431124,14.11494146,216.5,216.49,119.25127611]
[1736142431623,14.11494146,216.5,216.49,47.59222387]
[1736142432124,14.11494146,216.5,216.49,28.95623509]
[1736142432523,14.11494146,216.5,216.49,26.65003509]
[1736142432926,14.11494146,216.5,216.49,59.09026753]
[1736142433127,14.11494146,216.5,216.46,74.54395514]
[1736142433428,11.27494146,216.47,216.43,186.78431217]
[1736142433625,13.58584146,216.44,216.43,186.78431217]
[1736142433820,11.27494146,216.44,216.43,186.78431217]
[1736142434129,2.84,216.44,216.43,186.78431217]
[1736142434323,2.3107,216.46,216.39,309.58299772]
[1736142434531,11.27494146,216.47,216.39,309.58299772]
[1736142434532,2.84,216.45,216.43,4.75048878]
[1736142434935,2.84,216.45,216.39,309.58299772]
[1736142435431,2.84,216.45,216.42,4.74824556]
[1736142435632,2.84,216.45,216.39,309.58299772]
[1736142436229,11.27494146,216.44,216.39,309.58299772]
[1736142436826,2.3111,216.43,216.39,309.58299772]
[1736142437029,2.3111,216.43,216.39,219.2879567]
[1736142438435,2.3112,216.41,216.39,116.0936241]
[1736142439030,2.3112,216.41,216.4,4.74732185]
[1736142446133,2.3115,216.38,216.34,314.7351448]
[1736142446340,2.84,216.37,216.34,314.7351448]
[1736142446542,2.84,216.37,216.35,4.62622107]
[1736142446736,2.84,216.37,216.3,1.4703]
[1736142447339,2.84,216.37,216.31,12.02162758]
[1736142447940,2.84,216.37,216.32,12.02162758]
[1736142448343,2.84,216.37,216.33,6.93570291]
[1736142448642,2.84,216.37,216.3,1.4703]
[1736142448643,2.84,216.37,216.34,4.62370291]
[1736142448937,5.1516,216.37,216.34,4.62370291]
[1736142449138,5.1516,216.37,216.35,4.62370291]
[1736142449545,5.1516,216.37,216.36,4.62370291]
[1736142451848,2.84,216.37,216.36,4.62370291]
[1736142453351,2.84,216.37,216.36,12.0617631]
[1736142454051,11.27494146,216.42,216.36,12.0617631]
[1736142454255,2.3114,216.39,216.36,12.0617631]
[1736142454455,2.3114,216.39,216.37,12.0617631]
[1736142454850,2.3114,216.39,216.38,4.62370291]
[1736142455651,2.3114,216.39,216.38,12.08755159]
[1736142456957,1.4095,216.43,216.38,12.08755159]
[1736142457254,1.4095,216.43,216.3,1.4703]
[1736142457255,2.96,216.42,216.39,4.62370291]
[1736142457648,14.23494146,216.42,216.3,1.4703]
[1736142458050,2.3117,216.37,216.31,6.85941771]
[1736142458450,2.3117,216.37,216.32,4.54721771]
[1736142458856,2.3117,216.37,216.33,4.54721771]
[1736142459053,5.2718,216.36,216.33,4.54721771]
[1736142459453,5.2718,216.36,216.34,4.54721771]
[1736142459850,5.2718,216.36,216.35,4.54721771]
[1736142465362,16.54674146,216.36,216.35,4.54721771]
[1736142466571,5.2718,216.36,216.35,4.54721771]
[1736142467669,5.2718,216.36,216.31,2.3122]
[1736142468064,2.3118,216.36,216.31,2.3122]
[1736142468263,2.96,216.35,216.31,2.3122]
[1736142468566,2.96,216.35,216.32,2.3121]
[1736142468960,2.96,216.35,216.24,1.4822]
[1736142468961,2.96,216.35,216.33,2.312]
[1736142470368,0.6523,216.35,216.33,2.312]
[1736142473871,2.312,216.34,216.3,2.3124]
[1736142474767,2.3121,216.33,216.28,3.8273]
[1736142474969,0.6523,216.35,216.28,1.5148]
[1736142476570,2.3119,216.34,216.3,2.3124]
[1736142477269,9.53719942,216.34,216.3,2.3124]
[1736142477470,7.22529942,216.34,216.28,1.5148]
[1736142477773,0.6523,216.35,216.29,7.22529942]
[1736142477964,10.18529942,216.37,216.31,7.22529942]
[1736142478165,2.96,216.38,216.34,2.3118]
[1736142478572,7.22529942,216.37,216.31,7.22529942]
[1736142478974,2.3117,216.37,216.3,2.3123]
[1736142479177,2.3117,216.37,216.28,1.5148]
[1736142479778,2.3117,216.37,216.3,2.3123]
[1736142479979,2.3117,216.37,216.28,1.5148]
[1736142481275,2.96,216.38,216.34,2.3119]
[1736142481582,2.96,216.38,216.28,1.5148]
[1736142482077,11.28617564,216.43,216.3,11.28617564]
[1736142482278,2.88,216.39,216.3,11.28617564]
[1736142483080,2.88,216.39,216.36,2.3116]
[1736142483981,2.88,216.39,216.3,11.28617564]
[1736142484179,5.1914,216.4,216.35,2.3118]
[1736142484479,2.88,216.4,216.3,11.28617564]
[1736142484679,11.28617564,216.43,216.3,11.28617564]
[1736142484880,2.3112,216.41,216.3,11.28617564]
[1736142486485,2.3112,216.41,216.37,2.3116]
[1736142486685,5.1912,216.41,216.37,2.3116]
[1736142487079,2.3112,216.41,216.37,2.3116]
[1736142487283,2.88,216.41,216.37,2.3116]
[1736142487680,59.88,216.44,216.33,11.28617564]
[1736142487884,59.88,216.44,216.34,1.4408]
[1736142489483,59.88,216.44,216.4,2.3112]
[1736142489685,2.311,216.43,216.34,1.4408]
[1736142491390,2.3111,216.42,216.34,1.4408]
[1736142491790,59.88,216.44,216.36,2.3117]
[1736142491985,59.88,216.44,216.34,1.4408]
[1736142492290,11.28617564,216.42,216.34,1.4408]
[1736142492493,11.28617564,216.42,216.3,11.28617564]
[1736142493090,2.3114,216.39,216.34,2.3118]
[1736142493287,2.3114,216.39,216.3,11.28617564]
[1736142493488,2.88,216.38,216.29,1.4851]
[1736142493689,2.3118,216.35,216.3,2.3123]
[1736142494591,5.1918,216.36,216.31,2.3122]
[1736142497091,2.88,216.36,216.25,75.05607786]
[1736142497290,2.3118,216.35,216.25,75.05607786]
[1736142498191,2.312,216.34,216.29,2.3124]
[1736142498793,2.312,216.34,216.25,75.05607786]
[1736142498995,14.16617564,216.36,216.25,63.76990222]
[1736142499691,11.28617564,216.33,216.25,63.76990222]
[1736142500885,2.3121,216.33,216.25,66.08280222]
[1736142501090,2.88,216.33,216.25,63.76990222]
[1736142501889,2.88,216.33,216.3,2.3124]
[1736142504893,2.88,216.33,216.24,11.28617564]
[1736142504894,2.88,216.33,216.28,2.3125]
[1736142505093,2.88,216.33,216.24,11.28617564]
[1736142505494,2.3122,216.32,216.21,11.28617564]
[1736142505693,2.88,216.33,216.21,11.28617564]
[1736142505893,4.414,216.33,216.21,11.28617564]
[1736142506396,2.3124,216.31,216.26,2.3128]
[1736142506799,2.3126,216.28,216.23,2.313]
[1736142507002,2.88,216.27,216.19,66.73963754]
[1736142507493,2.88,216.27,216.24,2.313]
[1736142508090,2.88,216.27,216.22,2.3132]
[1736142508291,2.88,216.27,216.19,1.5189]
[1736142508496,2.88,216.27,216.15,11.28617564]
[1736142509304,2.3129,216.25,216.19,2.3134]
[1736142509494,68.28617564,216.31,216.19,11.28617564]
[1736142509797,2.88,216.3,216.19,11.28617564]
[1736142509999,5.1925,216.3,216.24,2.3129]
[1736142510399,2.88,216.3,216.24,2.3129]
[1736142511405,2.3125,216.29,216.24,2.3129]
[1736142511900,2.88,216.3,216.19,11.28617564]
[1736142512102,5.1925,216.3,216.19,11.28617564]
[1736142512499,5.1925,216.3,216.24,2.313]
[1736142514504,5.1925,216.3,216.25,2.3129]
[1736142515807,2.3125,216.3,216.25,2.3129]
[1736142516007,2.82,216.29,216.25,2.3129]
[1736142517508,2.3131,216.24,216.12,63.80548853]
[1736142517696,2.82,216.23,216.12,63.80548853]
[1736142517902,2.82,216.23,216.18,2.3135]
[1736142518107,2.82,216.23,216.12,63.80548853]
[1736142519808,2.82,216.23,216.17,2.3137]
[1736142521509,2.3133,216.21,216.17,2.3137]
[1736142521807,2.82,216.23,216.12,63.80548853]
[1736142522914,2.82,216.23,216.19,2.3135]
[1736142525207,5.1331,216.23,216.19,2.3135]
[1736142525814,2.3131,216.23,216.19,2.3135]
[1736142526007,2.82,216.22,216.18,2.3136]
[1736142526512,2.82,216.22,216.12,63.80548853]
[1736142526713,5.1333,216.22,216.12,63.80548853]
[1736142527310,5.1333,216.22,216.15,2.314]
[1736142527611,5.1333,216.22,216.12,63.80548853]
[1736142527814,2.82,216.22,216.12,63.80548853]
[1736142528016,2.82,216.22,216.16,2.3138]
[1736142528017,2.3134,216.21,216.16,2.3138]
[1736142528214,2.82,216.22,216.12,63.80548853]
[1736142528815,2.3135,216.2,216.16,2.3138]
[1736142529216,2.3135,216.2,216.14,2.314]
[1736142529418,2.3135,216.2,216.12,63.80548853]
[1736142529915,2.3135,216.2,216.16,2.3138]
[1736142530115,2.3133,216.21,216.16,2.3138]
[1736142531017,7.23442922,216.2,216.16,2.3138]
[1736142531420,7.23442922,216.2,216.17,2.3137]
[1736142531620,2.3133,216.21,216.17,2.3137]
[1736142531820,7.23442922,216.2,216.17,2.3137]
[1736142532620,59.3133,216.21,216.17,2.3137]
[1736142532815,7.23442922,216.2,216.17,2.3137]
[1736142541917,7.23442922,216.2,216.12,71.03991775]
[1736142541918,7.23442922,216.2,216.16,2.3138]
[1736142542123,9.54792922,216.2,216.16,2.3138]
[1736142543025,9.54812922,216.18,216.14,2.3141]
[1736142543319,7.23442922,216.16,216.12,63.80548853]
[1736142543517,7.23442922,216.16,216.1,2.3144]
[1736142543518,7.23442922,216.14,216.1,2.3144]
[1736142543915,57.0,216.15,216.1,2.3144]
[1736142544129,12.30852922,216.14,216.09,2.3146]
[1736142544520,9.99442922,216.14,216.07,7.23442922]
[1736142545016,9.99442922,216.14,216.1,2.3144]
[1736142546217,9.99442922,216.14,216.11,2.3144]
[1736142548425,9.99442922,216.14,216.12,2.3143]
[1736142549823,9.99442922,216.14,216.01,2.76]
[1736142550024,7.23442922,216.12,216.11,2.3144]
[1736142554136,66.99442922,216.14,216.06,7.23442922]
[1736142554432,66.99442922,216.14,216.08,7.23442922]
[1736142555257,59.76,216.14,216.08,7.23442922]
[1736142555465,57.0,216.14,216.13,2.3142]
[1736142557243,57.0,216.14,216.12,2.3142]
[1736142557542,57.0,216.14,216.08,7.23442922]
[1736142557838,57.0,216.14,216.1,7.23442922]
[1736142558142,57.0,216.14,216.13,2.3142]
[1736142559434,57.0,216.14,216.11,2.3143]
[1736142559638,7.23442922,216.13,216.11,2.3143]
[1736142561144,9.99442922,216.13,216.11,2.3143]
[1736142562644,9.99442922,216.13,216.07,7.23442922]
[1736142564045,2.76,216.13,216.11,2.3144]
[1736142564245,9.99442922,216.13,216.11,2.3144]
[1736142564543,9.99442922,216.13,216.01,2.76]
[1736142564544,9.99442922,216.13,216.09,2.3145]
[1736142565341,57.0,216.11,216.09,2.3145]
[1736142565541,57.0,216.1,216.09,2.3145]
[1736142565845,57.0,216.1,216.05,7.23442922]
[1736142567149,7.23442922,216.07,216.01,7.23442922]
[1736142567347,7.23442922,216.07,216.0,4.455]
[1736142567543,7.23442922,216.05,216.02,2.3153]
[1736142568050,7.23442922,216.03,215.97,7.23442922]
[1736142568745,7.23442922,216.01,215.93,1.433]
[1736142568951,57.0,215.98,215.93,1.433]
[1736142569246,57.0,215.98,215.95,7.23442922]
[1736142569449,57.0,215.98,215.97,2.3159]
[1736142570745,57.0,215.98,215.97,9.55032922]
[1736142574142,39.6422,215.98,215.97,9.55032922]
[1736142574348,9.97442922,216.1,215.97,7.23442922]
[1736142574648,9.97442922,216.1,216.03,7.23442922]
[1736142574851,9.97442922,216.1,216.07,2.3148]
[1736142577545,7.23442922,216.08,215.97,2.8575]
[1736142577744,7.23442922,216.06,216.0,7.23442922]
[1736142578251,7.23442922,216.06,216.04,2.3151]
[1736142578453,7.23442922,216.08,216.0,7.23442922]
[1736142579448,7.23442922,216.08,216.05,2.315]
[1736142581258,2.74,216.09,216.08,2.3147]
[1736142581453,2.74,216.09,216.02,7.23442922]
[1736142582156,7.23442922,216.1,216.02,7.23442922]
[1736142582557,1.3892,216.11,216.07,2.3148]
[1736142582758,8.62362922,216.11,216.04,7.23442922]
[1736142583151,8.62362922,216.11,216.07,2.3148]
[1736142583957,7.23442922,216.09,216.07,2.3148]
[1736142586756,7.23442922,216.09,216.06,2.3149]
[1736142590660,1.3892,216.11,216.06,2.3149]
[1736142591061,7.23442922,216.1,216.06,2.3149]
[1736142591563,2.74,216.12,215.98,2.74]
[1736142591863,7.23442922,216.08,216.01,7.23442922]
[1736142592562,7.23442922,216.08,216.05,2.315]
[1736142593365,2.3145,216.11,216.05,2.315]
[1736142593660,7.23442922,216.09,216.05,2.315]
[1736142596460,7.23442922,216.09,215.98,2.74]
[1736142596660,7.23442922,216.09,216.01,7.23442922]
[1736142597465,9.54912922,216.09,216.04,2.3151]
[1736142598969,9.54912922,216.09,216.03,2.3152]
[1736142599863,9.54912922,216.09,216.01,7.23442922]
[1736142600065,9.54912922,216.09,216.04,2.3151]
[1736142600563,7.23442922,216.09,216.01,7.23442922]
[1736142601261,7.23442922,216.07,215.97,2.8575]
[1736142601467,7.23442922,216.05,215.98,7.23442922]
[1736142601667,9.93442922,216.05,215.98,7.23442922]
[1736142602164,7.23442922,216.03,215.94,63.8549904]
[1736142602367,7.23442922,216.03,215.95,7.23442922]
[1736142602569,7.23442922,215.99,215.84,19.18990155]
[1736142602768,7.23442922,215.97,215.9,7.23442922]
[1736142603670,7.23442922,215.97,215.93,2.3163]
[1736142605167,7.23442922,215.95,215.9,2.3166]
[1736142605469,7.23442922,215.93,215.83,1.5212]
[1736142605774,9.93442922,215.93,215.88,2.3169]
[1736142606266,9.93442922,215.93,215.8,5.612]
[1736142606472,9.93442922,215.93,215.85,7.23442922]
[1736142606674,7.23442922,215.91,215.84,7.23442922]
[1736142607065,7.23442922,215.91,215.85,2.3171]
[1736142607264,7.23442922,215.91,215.8,2.912]
[1736142607464,2.7,215.9,215.84,7.23442922]
[1736142607667,2.7,215.9,215.85,2.3171]
[1736142607863,2.7,215.9,215.84,7.23442922]
[1736142608275,2.7,215.9,215.88,2.3168]
[1736142608872,1.3978,215.97,215.86,7.23442922]
[1736142609069,9.93442922,215.96,215.88,7.23442922]
[1736142610568,9.93442922,215.96,215.93,2.3163]
[1736142611679,2.7,215.96,215.9,7.23442922]
[1736142611980,3.0386,215.98,215.9,7.23442922]
[1736142612175,2.7,215.97,215.94,2.3162]
[1736142612378,3.0386,215.98,215.94,2.3162]
[1736142612379,12.97302922,215.98,215.94,2.3162]
[1736142613075,2.3153,216.03,215.96,2.316]
[1736142613282,52.96,216.11,215.94,7.23442922]
[1736142613283,7.23442922,216.01,215.94,7.23442922]
[1736142613782,7.23442922,215.99,215.95,2.3161]
[1736142614079,7.23442922,215.99,215.89,2.7]
[1736142614080,7.23442922,215.97,215.91,7.23442922]
[1736142614281,7.23442922,215.97,215.89,2.7]
[1736142614480,7.23442922,215.97,215.9,7.23442922]
[1736142614980,9.93442922,215.97,215.9,7.23442922]
[1736142615477,7.23442922,215.95,215.9,7.23442922]
[1736142616476,7.23442922,215.95,215.91,2.3165]
[1736142616681,7.23442922,215.95,215.9,7.23442922]
[1736142616876,2.7,215.97,215.85,1.5086]
[1736142617084,2.7,215.97,215.92,7.23442922]
[1736142617580,2.7,215.97,215.96,2.316]
[1736142617776,4.4507,216.01,215.96,7.23442922]
[1736142617981,9.93442922,216.02,215.96,7.23442922]
[1736142619286,4.389,216.1,215.98,7.23442922]
[1736142619587,7.23442922,216.05,215.98,7.23442922]
[1736142619880,2.7,216.04,215.98,7.23442922]
[1736142620086,7.23442922,216.03,215.99,2.3156]
[1736142620582,7.23442922,216.03,215.96,7.23442922]
[1736142620886,7.23442922,216.03,215.98,2.3157]
[1736142621285,7.23442922,216.03,215.96,7.23442922]
[1736142622387,7.23442922,216.03,215.99,2.3157]
[1736142623188,7.23442922,216.03,215.96,7.23442922]
[1736142624088,7.23442922,216.03,216.0,2.3155]
[1736142626096,7.23442922,216.01,215.96,2.3159]
[1736142626389,7.23442922,215.99,215.96,2.3159]
[1736142628289,7.23442922,215.99,215.94,2.3162]
[1736142628494,7.23442922,215.99,215.92,7.23442922]
[1736142628987,7.23442922,215.99,215.96,2.316]
[1736142630192,7.23442922,216.01,215.94,7.23442922]
[1736142630991,4.389,216.1,215.96,7.23442922]
[1736142631295,4.389,216.1,215.98,7.23442922]
[1736142631296,7.23442922,216.05,215.98,7.23442922]
[1736142633596,7.23442922,216.05,216.01,2.3154]
[1736142634786,7.23442922,216.05,216.02,2.3154]
[1736142634991,7.23442922,216.05,215.98,7.23442922]
[1736142636196,7.23442922,216.05,216.0,2.3156]
[1736142636496,7.23442922,216.05,215.98,7.23442922]
[1736142636991,7.23442922,216.05,216.0,2.3156]
[1736142637191,7.23442922,216.05,215.98,7.23442922]
[1736142637597,9.89442922,216.07,216.0,7.23442922]
[1736142637798,7.23442922,216.07,216.0,7.23442922]
[1736142637993,9.89442922,216.07,216.0,7.23442922]
[1736142638399,9.89442922,216.07,216.02,2.3153]
[1736142639496,9.89442922,216.07,216.0,7.23442922]
[1736142639695,9.89442922,216.07,216.03,2.3152]
[1736142641803,12.20932922,216.07,216.03,2.3152]
[1736142643003,7.23442922,216.05,216.03,2.3152]
[1736142643204,7.23442922,216.05,216.02,2.3153]
[1736142643501,7.23442922,216.03,215.96,7.23442922]
[1736142643699,7.23442922,216.03,215.86,1.4044]
[1736142643700,7.23442922,216.01,215.93,2.66]
[1736142643895,7.23442922,216.01,215.98,2.3157]
[1736142648607,7.23442922,216.01,215.95,7.23442922]
[1736142648904,7.23442922,216.01,215.93,7.23442922]
[1736142649107,7.23442922,216.01,215.96,2.3159]
[1736142650004,7.23442922,216.01,215.95,2.3161]
[1736142650205,7.23442922,216.0,215.93,7.23442922]
[1736142650407,7.23442922,216.0,215.89,2.66]
[1736142650704,7.23442922,216.0,215.93,7.23442922]
[1736142651508,7.23442922,216.0,215.95,2.3161]
[1736142651701,7.23442922,215.98,215.87,1.4577]
[1736142651901,7.23442922,215.96,215.9,7.23442922]
[1736142652407,7.23442922,215.96,215.92,2.3164]
[1736142652601,4.3681,216.01,215.92,2.3164]
[1736142652801,4.3681,216.01,215.75,19.18990155]
[1736142652802,7.23442922,215.96,215.75,19.18990155]
[1736142653001,12.21042922,215.96,215.91,2.3165]
[1736142653198,9.89442922,215.96,215.91,2.3165]
[1736142653604,9.89442922,215.96,215.92,2.3164]
[1736142657509,4.3681,216.01,215.95,2.3161]
[1736142657708,14.26252922,216.01,215.93,7.23442922]
[1736142658109,14.26252922,216.01,215.96,2.3159]
[1736142658610,16.57802922,216.01,215.96,2.3159]
[1736142659014,14.26252922,216.01,215.93,7.23442922]
[1736142659212,7.23442922,215.99,215.93,7.23442922]
[1736142659409,7.23442922,215.97,215.85,2.66]
[1736142659812,7.23442922,215.97,215.91,7.23442922]
[1736142660810,7.23442922,215.97,215.93,2.3163]
[1736142662718,7.23442922,215.97,215.91,7.23442922]
[1736142662915,7.23442922,215.95,215.92,2.3164]
[1736142663110,7.23442922,215.95,215.85,2.66]
[1736142663315,7.23442922,215.95,215.87,7.23442922]
[1736142664418,7.23442922,215.95,215.9,2.3166]
[1736142664419,9.55052922,215.95,215.9,2.3166]
[1736142664616,9.55052922,215.95,215.87,7.23442922]
[1736142664617,7.23442922,215.93,215.87,7.23442922]
[1736142665421,7.23442922,215.93,215.89,2.3167]
[1736142667415,7.23442922,215.93,215.88,2.3169]
[1736142667615,7.23442922,215.91,215.83,1.5234]
[1736142667919,7.23442922,215.89,215.85,2.3171]
[1736142668414,7.23442922,215.89,215.83,7.23442922]
[1736142669120,7.23442922,215.85,215.8,2.3177]
[1736142669322,9.89442922,215.85,215.8,2.3177]
[1736142670321,7.23442922,215.83,215.8,2.3177]
[1736142671923,7.23442922,215.83,215.78,2.3179]
[1736142672116,7.23442922,215.83,215.76,7.23442922]
[1736142672620,7.23442922,215.83,215.79,2.3178]
[1736142675121,7.23442922,215.81,215.77,2.3179]
[1736142675827,7.23442922,215.79,215.7,1.4433]
[1736142676121,7.23442922,215.79,215.71,7.23442922]
[1736142677420,7.23442922,215.79,215.73,2.3184]
[1736142677826,7.23442922,215.79,215.71,7.23442922]
[1736142678023,7.23442922,215.79,215.74,2.3183]
[1736142678526,7.23442922,215.77,215.71,7.23442922]
[1736142678721,7.23442922,215.77,215.75,2.3183]
[1736142685434,7.23442922,215.77,215.74,2.3184]
[1736142685833,7.23442922,215.77,215.71,7.23442922]
[1736142686034,7.23442922,215.77,215.75,2.3182]
[1736142686733,4.4723,215.9,215.78,2.3179]
[1736142686939,4.4723,215.9,215.77,7.23442922]
[1736142687239,7.23442922,215.83,215.77,7.23442922]
[1736142688140,7.23442922,215.83,215.78,2.3178]
[1736142688340,7.23442922,215.83,215.75,7.23442922]
[1736142689080,7.23442922,215.81,215.79,2.3178]
[1736142691046,7.23442922,215.81,215.75,7.23442922]
[1736142691849,7.23442922,215.81,215.79,2.3177]
[1736142692644,9.89442922,215.83,215.8,2.3177]
[1736142692937,7.23442922,215.84,215.77,7.23442922]
[1736142693144,7.23442922,215.84,215.8,2.3177]
[1736142693346,7.23442922,215.82,215.8,2.3177]
[1736142693740,7.23442922,215.82,215.77,2.318]
[1736142693941,7.23442922,215.82,215.75,7.23442922]
[1736142694242,2.66,215.86,215.77,7.23442922]
[1736142694541,7.23442922,215.83,215.77,7.23442922]
[1736142695741,7.23442922,215.83,215.8,2.3176]
[1736142696537,7.23442922,215.83,215.77,7.23442922]
[1736142696743,7.23442922,215.83,215.81,2.3176]
[1736142697737,7.23442922,215.83,215.77,7.23442922]
[1736142697738,7.23442922,215.83,215.79,2.3177]
[1736142698047,7.23442922,215.83,215.77,7.23442922]
[1736142698446,7.23442922,215.83,215.75,7.23442922]
[1736142699150,7.23442922,215.83,215.79,2.3177]
[1736142703344,7.23442922,215.81,215.79,2.3177]
[1736142703745,7.23442922,215.81,215.75,7.23442922]
[1736142703946,7.23442922,215.81,215.79,2.3178]
[1736142710183,2.66,215.85,215.81,2.3176]
[1736142710361,7.23442922,215.84,215.77,7.23442922]
[1736142711555,7.23442922,215.84,215.73,1.3934]
[1736142711858,7.23442922,215.84,215.76,7.23442922]
[1736142712551,7.23442922,215.84,215.81,2.3176]
[1736142713349,7.23442922,215.84,215.76,7.23442922]
[1736142714456,7.23442922,215.84,215.81,2.3176]
[1736142715455,7.23442922,215.84,215.76,7.23442922]
[1736142716354,7.23442922,215.82,215.76,7.23442922]
[1736142717352,7.23442922,215.82,215.78,2.3178]
[1736142719857,7.23442922,215.82,215.8,2.3177]
[1736142720855,7.23442922,215.82,215.76,7.23442922]
[1736142721154,7.23442922,215.82,215.8,2.3177]
[1736142722261,7.23442922,215.82,215.81,2.3176]
[1736142725462,7.23442922,215.82,215.79,2.3178]
[1736142725665,7.23442922,215.8,215.69,63.92994798]
[1736142725863,7.23442922,215.78,215.7,2.66]
[1736142726165,7.23442922,215.76,215.69,63.92994798]
[1736142726357,7.23442922,215.76,215.69,71.1643772]
[1736142726557,7.23442922,215.76,215.73,2.3184]
[1736142727159,7.23442922,215.76,215.72,2.3186]
[1736142728461,7.23442922,215.76,215.69,71.1643772]
[1736142728655,7.23442922,215.76,215.73,2.3184]
[1736142729062,2.66,215.78,215.69,71.1643772]
[1736142729366,7.23442922,215.76,215.74,2.3184]
[1736142733067,7.23442922,215.76,215.71,2.3187]
[1736142733261,2.66,215.78,215.69,63.92994798]
[1736142733262,7.23442922,215.72,215.69,63.92994798]
[1736142733786,7.23442922,215.72,215.66,7.23442922]
[1736142734476,7.23442922,215.72,215.69,2.3188]
[1736142735066,7.23442922,215.72,215.66,7.23442922]
[1736142735270,7.23442922,215.72,215.7,2.3188]
[1736142737077,7.23442922,215.72,215.64,1.4812]
[1736142737372,7.23442922,215.72,215.64,8.71562922]
[1736142737574,7.23442922,215.7,215.67,2.319]
[1736142737779,7.23442922,215.7,215.64,8.71562922]
[1736142738071,7.23442922,215.7,215.65,2.3192]
[1736142738272,7.23442922,215.7,215.64,7.23442922]
[1736142741374,7.23442922,215.7,215.67,2.319]
[1736142741671,7.23442922,215.7,215.64,7.23442922]
[1736142742535,7.23442922,215.7,215.68,2.319]
[1736142745975,7.23442922,215.7,215.59,2.66]
[1736142746173,7.23442922,215.7,215.66,2.3191]
[1736142747674,7.23442922,215.7,215.68,2.3189]
[1736142747876,7.23442922,215.7,215.63,7.23442922]
[1736142749494,7.23442922,215.7,215.69,2.3189]
[1736142749670,7.23442922,215.7,215.63,7.23442922]
[1736142750104,7.23442922,215.7,215.67,2.319]
[1736142752783,2.66,215.72,215.67,2.319]
[1736142752985,7.23442922,215.7,215.67,2.319]
[1736142756182,2.66,215.72,215.65,2.3192]
[1736142756183,7.23442922,215.68,215.65,2.3192]
[1736142758983,4.3674,215.77,215.65,7.23442922]
[1736142759201,7.23442922,215.74,215.59,2.66]
[1736142759424,7.23442922,215.74,215.67,7.23442922]
[1736142760485,7.23442922,215.74,215.69,2.3189]
[1736142760688,7.23442922,215.74,215.67,7.23442922]
[1736142760884,7.23442922,215.72,215.64,7.23442922]
[1736142761687,7.23442922,215.72,215.68,2.3189]
[1736142761889,7.23442922,215.72,215.66,7.23442922]
[1736142762085,7.23442922,215.72,215.69,2.3188]
[1736142762285,7.23442922,215.72,215.59,2.66]
[1736142762487,7.23442922,215.72,215.66,7.23442922]
[1736142762889,7.23442922,215.72,215.64,7.23442922]
[1736142763090,7.23442922,215.7,215.64,7.23442922]
[1736142764086,7.23442922,215.68,215.59,2.66]
[1736142764289,7.23442922,215.68,215.62,7.23442922]
[1736142764694,7.23442922,215.68,215.64,2.3193]
[1736142766597,7.23442922,215.68,215.65,2.3193]
[1736142769097,7.23442922,215.68,215.62,7.23442922]
[1736142769327,7.23442922,215.68,215.64,2.3194]
[1736142769674,7.23442922,215.68,215.62,7.23442922]
[1736142770397,7.23442922,215.68,215.65,2.3193]
[1736142774500,2.66,215.71,215.66,7.23442922]
[1736142774705,9.89442922,215.71,215.66,7.23442922]
[1736142775001,7.23442922,215.71,215.66,7.23442922]
[1736142775189,7.23442922,215.71,215.69,2.3188]
[1736142784706,7.23442922,215.71,215.65,7.23442922]
[1736142784905,2.66,215.73,215.7,2.3188]
[1736142784906,9.89442922,215.73,215.7,2.3188]
[1736142792412,7.23442922,215.71,215.7,2.3188]
[1736142794816,9.55312922,215.71,215.64,2.3194]
[1736142795100,7.23442922,215.69,215.59,2.66]
[1736142795322,7.23442922,215.67,215.6,7.23442922]
[1736142796323,7.23442922,215.67,215.64,2.3194]
[1736142799419,7.23442922,215.67,215.63,2.3195]
[1736142802020,7.23442922,215.65,215.57,1.5031]
[1736142802221,7.23442922,215.65,215.57,8.73752922]
[1736142802723,7.23442922,215.63,215.57,8.73752922]
[1736142803114,7.23442922,215.63,215.47,57.6626]
[1736142803115,7.23442922,215.63,215.51,2.3208]